[Event "*** Titled Tuesday Blitz"]
[Site "Chess.com"]
[Date "2021.04.27"]
[Round "1"]
[White "AlexSuv"]
[Black "LubovMarkelova"]
[Result "1/2-1/2"]
[WhiteElo "2563"]
[BlackElo "2250"]
[TimeControl "180+1"]
[EndTime "10:07:26 PDT"]
[Termination "Game drawn - insufficient material"]

1. d4 {[%clk 0:03:00.6]} 1... d5 {[%clk 0:03:00]} 2. c4 {[%clk 0:03:00.4]} 2...
c6 {[%clk 0:02:59.6]} 3. Nc3 {[%clk 0:03:00.5]} 3... Nf6 {[%clk 0:02:59.8]} 4.
e3 {[%clk 0:03:00.4]} 4... e6 {[%clk 0:03:00.4]} 5. Nf3 {[%clk 0:03:00.5]} 5...
Nbd7 {[%clk 0:02:59.3]} 6. Qc2 {[%clk 0:03:00.9]} 6... Bd6 {[%clk 0:02:58.3]} 7.
Bd3 {[%clk 0:03:00.7]} 7... dxc4 {[%clk 0:02:58.3]} 8. Bxc4 {[%clk 0:03:01.6]}
8... b5 {[%clk 0:02:58.9]} 9. Be2 {[%clk 0:03:00.5]} 9... Bb7 {[%clk 0:02:58.9]}
10. O-O {[%clk 0:03:00.5]} 10... O-O {[%clk 0:02:58.7]} 11. Rd1 {[%clk
0:03:00.7]} 11... Qe7 {[%clk 0:02:55.4]} 12. e4 {[%clk 0:02:56.2]} 12... e5
{[%clk 0:02:54.1]} 13. dxe5 {[%clk 0:02:36.1]} 13... Nxe5 {[%clk 0:02:53.6]} 14.
Nd4 {[%clk 0:02:36.4]} 14... g6 {[%clk 0:02:29.1]} 15. Bg5 {[%clk 0:02:17.6]}
15... h6 {[%clk 0:02:10]} 16. Bh4 {[%clk 0:02:02.8]} 16... b4 {[%clk 0:01:49.7]}
17. Na4 {[%clk 0:01:58.6]} 17... c5 {[%clk 0:01:47]} 18. Nb3 {[%clk 0:00:55.9]}
18... Bxe4 {[%clk 0:01:40.1]} 19. Qxe4 {[%clk 0:00:48.1]} 19... Nxe4 {[%clk
0:01:39.6]} 20. Bxe7 {[%clk 0:00:49]} 20... Bxe7 {[%clk 0:01:40.1]} 21. f3
{[%clk 0:00:39.3]} 21... Nf6 {[%clk 0:01:28.4]} 22. Naxc5 {[%clk 0:00:38.1]}
22... Rfd8 {[%clk 0:01:25.8]} 23. Nb7 {[%clk 0:00:31.5]} 23... Rxd1+ {[%clk
0:01:20.6]} 24. Rxd1 {[%clk 0:00:32.4]} 24... Rb8 {[%clk 0:01:16.2]} 25. N7a5
{[%clk 0:00:28.4]} 25... Rd8 {[%clk 0:01:13]} 26. Rxd8+ {[%clk 0:00:23.4]} 26...
Bxd8 {[%clk 0:01:13.1]} 27. Kf2 {[%clk 0:00:22.7]} 27... Bb6+ {[%clk 0:01:11.4]}
28. Ke1 {[%clk 0:00:21.6]} 28... Nd5 {[%clk 0:01:10.7]} 29. Nc4 {[%clk
0:00:18.2]} 29... Nxc4 {[%clk 0:01:07.8]} 30. Bxc4 {[%clk 0:00:19.1]} 30... Ne3
{[%clk 0:01:07.8]} 31. Bf1 {[%clk 0:00:19.7]} 31... a5 {[%clk 0:01:02.4]} 32. g3
{[%clk 0:00:19.6]} 32... a4 {[%clk 0:01:00.5]} 33. Nc1 {[%clk 0:00:20]} 33...
Bd4 {[%clk 0:00:56.2]} 34. Nd3 {[%clk 0:00:20.2]} 34... b3 {[%clk 0:00:48.7]}
35. axb3 {[%clk 0:00:13.6]} 35... axb3 {[%clk 0:00:46.8]} 36. Nc1 {[%clk
0:00:13.5]} 36... Bxb2 {[%clk 0:00:39.8]} 37. Nxb3 {[%clk 0:00:13.8]} 37... Nxf1
{[%clk 0:00:40]} 38. Kxf1 {[%clk 0:00:14.5]} 38... Be5 {[%clk 0:00:37.5]} 39.
Ke2 {[%clk 0:00:14.4]} 39... Kg7 {[%clk 0:00:37.6]} 40. f4 {[%clk 0:00:14.6]}
40... Bd6 {[%clk 0:00:36.6]} 41. Nd4 {[%clk 0:00:14.6]} 41... h5 {[%clk
0:00:36.5]} 42. Kf3 {[%clk 0:00:14.9]} 42... Kf6 {[%clk 0:00:35.9]} 43. Nc2
{[%clk 0:00:14.8]} 43... Bc5 {[%clk 0:00:35.5]} 44. Ne1 {[%clk 0:00:14.4]} 44...
g5 {[%clk 0:00:34.3]} 45. fxg5+ {[%clk 0:00:13.5]} 45... Kxg5 {[%clk 0:00:34.2]}
46. Nd3 {[%clk 0:00:14.4]} 46... Bd6 {[%clk 0:00:34.3]} 47. Nf2 {[%clk
0:00:14.3]} 47... f5 {[%clk 0:00:33.8]} 48. Nd3 {[%clk 0:00:13.8]} 48... h4
{[%clk 0:00:32.6]} 49. Nf2 {[%clk 0:00:13]} 49... hxg3 {[%clk 0:00:32.5]} 50.
hxg3 {[%clk 0:00:13.9]} 50... Bxg3 {[%clk 0:00:32.6]} 51. Kxg3 {[%clk
0:00:13.8]} 51... f4+ {[%clk 0:00:33.1]} 52. Kf3 {[%clk 0:00:14.3]} 52... Kf5
{[%clk 0:00:33.4]} 53. Nd3 {[%clk 0:00:15.2]} 53... Kf6 {[%clk 0:00:33.5]} 54.
Nxf4 {[%clk 0:00:16.1]} 1/2-1/2

[Event "*** Titled Tuesday Blitz"]
[Site "Chess.com"]
[Date "2021.04.27"]
[Round "1"]
[White "KononenkoD"]
[Black "shaheus"]
[Result "1-0"]
[WhiteElo "2513"]
[BlackElo "2147"]
[TimeControl "180+1"]
[EndTime "10:07:26 PDT"]
[Termination "KononenkoD won by resignation"]

1. d4 {[%clk 0:02:55]} 1... Nf6 {[%clk 0:02:59.8]} 2. c4 {[%clk 0:02:53.1]} 2...
g6 {[%clk 0:03:00.2]} 3. Nf3 {[%clk 0:02:51.8]} 3... Bg7 {[%clk 0:03:00.5]} 4.
g3 {[%clk 0:02:52.1]} 4... d6 {[%clk 0:03:01]} 5. Bg2 {[%clk 0:02:52.3]} 5...
O-O {[%clk 0:03:01.7]} 6. O-O {[%clk 0:02:50.9]} 6... Nbd7 {[%clk 0:03:01.8]} 7.
Nc3 {[%clk 0:02:51.3]} 7... e5 {[%clk 0:03:01.3]} 8. e4 {[%clk 0:02:49]} 8...
Re8 {[%clk 0:03:00.8]} 9. Re1 {[%clk 0:02:48.6]} 9... c6 {[%clk 0:02:59]} 10. h3
{[%clk 0:02:47.5]} 10... a5 {[%clk 0:02:48.9]} 11. Be3 {[%clk 0:02:44.2]} 11...
exd4 {[%clk 0:02:42.6]} 12. Nxd4 {[%clk 0:02:39.6]} 12... Nc5 {[%clk 0:02:42.7]}
13. Qc2 {[%clk 0:02:36.5]} 13... a4 {[%clk 0:02:41.8]} 14. Rad1 {[%clk
0:02:32.5]} 14... Qa5 {[%clk 0:02:28.9]} 15. f4 {[%clk 0:02:24.8]} 15... Qb4
{[%clk 0:02:18.2]} 16. b3 {[%clk 0:02:20]} 16... axb3 {[%clk 0:02:17.4]} 17.
axb3 {[%clk 0:02:20.9]} 17... Ra3 {[%clk 0:02:09.6]} 18. Rb1 {[%clk 0:02:20.3]}
18... Ne6 {[%clk 0:02:02.5]} 19. Nf3 {[%clk 0:02:13]} 19... Nd7 {[%clk
0:01:51.6]} 20. Bd2 {[%clk 0:02:10.6]} 20... Nd4 {[%clk 0:01:43.7]} 21. Nxd4
{[%clk 0:02:10.3]} 21... Bxd4+ {[%clk 0:01:43.5]} 22. Kh2 {[%clk 0:02:10.7]}
22... Qb6 {[%clk 0:01:33.6]} 23. Na4 {[%clk 0:02:09.4]} 23... Qc7 {[%clk
0:01:11.8]} 24. Bb4 {[%clk 0:02:08.3]} 24... Rxa4 {[%clk 0:01:03.1]} 25. bxa4
{[%clk 0:02:09.2]} 25... Nc5 {[%clk 0:01:03.2]} 26. Rbd1 {[%clk 0:01:58.9]}
26... Bg7 {[%clk 0:00:59.3]} 27. e5 {[%clk 0:01:58.7]} 27... Ne6 {[%clk
0:00:46.8]} 28. Bxd6 {[%clk 0:01:56.9]} 28... Qa5 {[%clk 0:00:46.6]} 29. Bf3
{[%clk 0:01:47.8]} 29... Nc5 {[%clk 0:00:40.4]} 30. Qd2 {[%clk 0:01:43.7]} 30...
Qa7 {[%clk 0:00:31.1]} 31. Qf2 {[%clk 0:01:41.7]} 31... b6 {[%clk 0:00:31.5]}
32. Bxc6 {[%clk 0:01:32.8]} 32... Bd7 {[%clk 0:00:21.8]} 33. Bxd7 {[%clk
0:01:16.7]} 33... Nxd7 {[%clk 0:00:20.7]} 34. Rd5 {[%clk 0:01:07.3]} 34... Qxa4
{[%clk 0:00:20.4]} 35. c5 {[%clk 0:00:48.9]} 35... Qc6 {[%clk 0:00:18.4]} 36.
Qd4 {[%clk 0:00:41.9]} 36... bxc5 {[%clk 0:00:17.9]} 37. Bxc5 {[%clk 0:00:41.2]}
37... Nxc5 {[%clk 0:00:17.2]} 38. Qxc5 {[%clk 0:00:38.6]} 38... Qa4 {[%clk
0:00:17]} 39. Red1 {[%clk 0:00:36.7]} 39... Bf8 {[%clk 0:00:16]} 40. Qd4 {[%clk
0:00:32.1]} 40... Qa2+ {[%clk 0:00:15.3]} 41. Rd2 {[%clk 0:00:31.8]} 41... Qb1
{[%clk 0:00:15.5]} 42. Rd8 {[%clk 0:00:30.9]} 42... Re6 {[%clk 0:00:13.6]} 43.
Qc5 {[%clk 0:00:20.1]} 1-0

[Event "*** Titled Tuesday Blitz"]
[Site "Chess.com"]
[Date "2021.04.27"]
[Round "1"]
[White "Aslanov_Umid"]
[Black "Anton_Demchenko"]
[Result "0-1"]
[WhiteElo "2454"]
[BlackElo "2918"]
[TimeControl "180+1"]
[EndTime "10:07:29 PDT"]
[Termination "Anton_Demchenko won by resignation"]

1. e4 {[%clk 0:03:00.9]} 1... e5 {[%clk 0:02:56.9]} 2. Nf3 {[%clk 0:03:00.9]}
2... Nc6 {[%clk 0:02:56.3]} 3. Bc4 {[%clk 0:03:01.4]} 3... Nf6 {[%clk
0:02:55.5]} 4. d3 {[%clk 0:03:01.3]} 4... Be7 {[%clk 0:02:54.7]} 5. O-O {[%clk
0:03:01.4]} 5... O-O {[%clk 0:02:55.3]} 6. c3 {[%clk 0:03:01.2]} 6... d6 {[%clk
0:02:55.8]} 7. h3 {[%clk 0:03:01]} 7... Kh8 {[%clk 0:02:55.9]} 8. Bb3 {[%clk
0:02:56.7]} 8... Ng8 {[%clk 0:02:55.7]} 9. d4 {[%clk 0:02:54.4]} 9... f5 {[%clk
0:02:49.5]} 10. dxe5 {[%clk 0:02:30.4]} 10... fxe4 {[%clk 0:02:42.7]} 11. Nfd2
{[%clk 0:02:17.7]} 11... d5 {[%clk 0:02:16.8]} 12. c4 {[%clk 0:01:58.8]} 12...
d4 {[%clk 0:02:16.8]} 13. Nxe4 {[%clk 0:01:56.8]} 13... Nxe5 {[%clk 0:02:16.5]}
14. f4 {[%clk 0:01:35.2]} 14... Nc6 {[%clk 0:02:09.6]} 15. Nbd2 {[%clk
0:01:32.3]} 15... d3 {[%clk 0:01:49.9]} 16. Nf3 {[%clk 0:01:30.9]} 16... Bf5
{[%clk 0:01:48.5]} 17. Ng3 {[%clk 0:01:26]} 17... Bc5+ {[%clk 0:01:40.3]} 18.
Kh1 {[%clk 0:01:22]} 18... Nh6 {[%clk 0:01:39.6]} 19. Ng5 {[%clk 0:01:01.8]}
19... Qd7 {[%clk 0:01:32.2]} 20. Bd2 {[%clk 0:00:57.4]} 20... Bd4 {[%clk
0:01:31.3]} 21. Bc3 {[%clk 0:00:54.3]} 21... Bxc3 {[%clk 0:01:30.7]} 22. bxc3
{[%clk 0:00:55.2]} 22... Rad8 {[%clk 0:01:17.9]} 23. Qf3 {[%clk 0:00:50.6]}
23... d2 {[%clk 0:01:10.4]} 24. Rad1 {[%clk 0:00:44.2]} 24... Qd3 {[%clk
0:01:05.2]} 25. Nxf5 {[%clk 0:00:29.4]} 25... Nxf5 {[%clk 0:00:53.8]} 26. Qxd3
{[%clk 0:00:20.6]} 26... Rxd3 {[%clk 0:00:53.3]} 27. Rf2 {[%clk 0:00:21.1]}
27... h6 {[%clk 0:00:38.8]} 28. Ne6 {[%clk 0:00:20.1]} 28... Re8 {[%clk
0:00:39.4]} 29. Re2 {[%clk 0:00:16.7]} 29... Ng3+ {[%clk 0:00:38.4]} 30. Kh2
{[%clk 0:00:16.2]} 30... Nxe2 {[%clk 0:00:39.3]} 31. Nc5 {[%clk 0:00:15.8]}
31... Rde3 {[%clk 0:00:20.3]} 32. Rxd2 {[%clk 0:00:15.5]} 32... Nxf4 {[%clk
0:00:20.5]} 33. Bd1 {[%clk 0:00:12.4]} 33... Ne5 {[%clk 0:00:19.8]} 34. Nxb7
{[%clk 0:00:10.7]} 34... Rd3 {[%clk 0:00:19.4]} 35. Rf2 {[%clk 0:00:10.5]} 35...
Nxh3 {[%clk 0:00:17.4]} 36. gxh3 {[%clk 0:00:09.3]} 36... Rxd1 {[%clk
0:00:17.5]} 37. Nc5 {[%clk 0:00:09.7]} 37... Nd3 {[%clk 0:00:16.1]} 38. Nxd3
{[%clk 0:00:08.5]} 38... Rxd3 {[%clk 0:00:17]} 39. Rf7 {[%clk 0:00:09.2]} 39...
Re2+ {[%clk 0:00:15.2]} 40. Kg1 {[%clk 0:00:09.7]} 40... Rd1+ {[%clk 0:00:15.6]}
0-1

[Event "*** Titled Tuesday Blitz"]
[Site "Chess.com"]
[Date "2021.04.27"]
[Round "1"]
[White "Yana_pro"]
[Black "UKR_Master"]
[Result "0-1"]
[WhiteElo "1978"]
[BlackElo "2484"]
[TimeControl "180+1"]
[EndTime "10:07:32 PDT"]
[Termination "UKR_Master won on time"]

1. e4 {[%clk 0:02:58.3]} 1... c5 {[%clk 0:02:57.9]} 2. Nf3 {[%clk 0:02:57.7]}
2... e6 {[%clk 0:02:58.5]} 3. d4 {[%clk 0:02:56.6]} 3... cxd4 {[%clk 0:02:59.4]}
4. Nxd4 {[%clk 0:02:56.6]} 4... a6 {[%clk 0:02:59.9]} 5. Nc3 {[%clk 0:02:47.6]}
5... Qc7 {[%clk 0:03:00]} 6. Be3 {[%clk 0:02:27.8]} 6... Bb4 {[%clk 0:02:59.5]}
7. Bd2 {[%clk 0:02:13]} 7... Nf6 {[%clk 0:02:56.6]} 8. Bd3 {[%clk 0:02:08.7]}
8... Nc6 {[%clk 0:02:55.2]} 9. Nf3 {[%clk 0:01:48.6]} 9... O-O {[%clk
0:02:52.7]} 10. O-O {[%clk 0:01:48.1]} 10... b5 {[%clk 0:02:29.3]} 11. Re1
{[%clk 0:01:39.5]} 11... d6 {[%clk 0:02:21.3]} 12. a4 {[%clk 0:01:16.9]} 12...
bxa4 {[%clk 0:02:12.6]} 13. Rxa4 {[%clk 0:01:14.7]} 13... Bc5 {[%clk 0:02:12.4]}
14. h3 {[%clk 0:01:08.6]} 14... Rb8 {[%clk 0:02:09.7]} 15. b3 {[%clk 0:01:07]}
15... a5 {[%clk 0:01:59.4]} 16. Ne2 {[%clk 0:00:53.6]} 16... Qb6 {[%clk
0:01:57]} 17. Rf1 {[%clk 0:00:53.4]} 17... Bd7 {[%clk 0:01:48.2]} 18. Qa1 {[%clk
0:00:40.6]} 18... Nb4 {[%clk 0:01:39]} 19. Bxb4 {[%clk 0:00:40]} 19... axb4
{[%clk 0:01:37.8]} 20. Ra6 {[%clk 0:00:38.2]} 20... Qb7 {[%clk 0:01:36.1]} 21.
e5 {[%clk 0:00:37.5]} 21... dxe5 {[%clk 0:01:29]} 22. Nxe5 {[%clk 0:00:37.2]}
22... Bb5 {[%clk 0:01:29.5]} 23. Bxb5 {[%clk 0:00:31.7]} 23... Qxb5 {[%clk
0:01:30.4]} 24. Ng3 {[%clk 0:00:30.9]} 24... Rfd8 {[%clk 0:01:25.1]} 25. Nc4
{[%clk 0:00:30.3]} 25... Qb7 {[%clk 0:01:12.5]} 26. Ra4 {[%clk 0:00:27.6]} 26...
Qd5 {[%clk 0:01:10.9]} 27. Qe1 {[%clk 0:00:24.3]} 27... Qg5 {[%clk 0:01:10.2]}
28. Kh1 {[%clk 0:00:22.7]} 28... h5 {[%clk 0:01:06.5]} 29. Ne4 {[%clk
0:00:21.7]} 29... Nxe4 {[%clk 0:01:05.8]} 30. Qxe4 {[%clk 0:00:22.6]} 30... Rd4
{[%clk 0:01:02.6]} 31. Qe2 {[%clk 0:00:22.2]} 31... Rbd8 {[%clk 0:01:01.8]} 32.
Ra5 {[%clk 0:00:19.9]} 32... R4d5 {[%clk 0:00:58.9]} 33. Qf3 {[%clk 0:00:14.1]}
33... Qg6 {[%clk 0:00:57.6]} 34. Qe2 {[%clk 0:00:11.5]} 34... h4 {[%clk
0:00:55.2]} 35. f4 {[%clk 0:00:10.9]} 35... Qf5 {[%clk 0:00:50.4]} 36. Qg4
{[%clk 0:00:09.4]} 36... Qxc2 {[%clk 0:00:48.9]} 37. Qxh4 {[%clk 0:00:09.2]}
37... Qxb3 {[%clk 0:00:48.4]} 38. Ne5 {[%clk 0:00:05.6]} 38... Qc3 {[%clk
0:00:35.4]} 39. Qg5 {[%clk 0:00:03.7]} 39... f6 {[%clk 0:00:30.6]} 40. Qh4
{[%clk 0:00:03.2]} 40... fxe5 {[%clk 0:00:30.8]} 41. fxe5 {[%clk 0:00:03.4]}
41... Rd1 {[%clk 0:00:27.3]} 42. Rxc5 {[%clk 0:00:01.1]} 42... Rxf1+ {[%clk
0:00:27.1]} 43. Kh2 {[%clk 0:00:01.3]} 43... Qxc5 {[%clk 0:00:23.1]} 0-1

[Event "*** Titled Tuesday Blitz"]
[Site "Chess.com"]
[Date "2021.04.27"]
[Round "1"]
[White "ShahMatKanal"]
[Black "VladDobrov"]
[Result "1-0"]
[WhiteElo "2410"]
[BlackElo "2712"]
[TimeControl "180+1"]
[EndTime "10:07:35 PDT"]
[Termination "ShahMatKanal won by resignation"]

1. d4 {[%clk 0:02:59.1]} 1... Nf6 {[%clk 0:03:00]} 2. Nf3 {[%clk 0:02:58.3]}
2... e6 {[%clk 0:03:00.4]} 3. c4 {[%clk 0:02:57.1]} 3... d5 {[%clk 0:02:53.9]}
4. cxd5 {[%clk 0:02:55.8]} 4... exd5 {[%clk 0:02:53.8]} 5. Nc3 {[%clk
0:02:56.4]} 5... c6 {[%clk 0:02:53.5]} 6. Bg5 {[%clk 0:02:53.8]} 6... Bf5 {[%clk
0:02:53.6]} 7. e3 {[%clk 0:02:52.6]} 7... Nbd7 {[%clk 0:02:53.8]} 8. Bd3 {[%clk
0:02:51.8]} 8... Bxd3 {[%clk 0:02:53.7]} 9. Qxd3 {[%clk 0:02:52.7]} 9... Bd6
{[%clk 0:02:54]} 10. O-O {[%clk 0:02:52.1]} 10... O-O {[%clk 0:02:53.9]} 11. a3
{[%clk 0:02:51.5]} 11... a5 {[%clk 0:02:54]} 12. Qc2 {[%clk 0:02:49.9]} 12...
Re8 {[%clk 0:02:49.8]} 13. Bh4 {[%clk 0:02:40.3]} 13... h6 {[%clk 0:02:34.2]}
14. Rab1 {[%clk 0:02:35.4]} 14... Re6 {[%clk 0:02:20.1]} 15. Rfe1 {[%clk
0:02:24.7]} 15... b5 {[%clk 0:02:18.8]} 16. Ne2 {[%clk 0:01:58.6]} 16... Qe8
{[%clk 0:01:59]} 17. Bg3 {[%clk 0:01:47]} 17... Bf8 {[%clk 0:01:58.7]} 18. Nf4
{[%clk 0:01:44.5]} 18... Rd6 {[%clk 0:01:47.6]} 19. Nd3 {[%clk 0:01:42.5]} 19...
Re6 {[%clk 0:01:47.5]} 20. h3 {[%clk 0:01:19.1]} 20... Ne4 {[%clk 0:01:45.7]}
21. Bh2 {[%clk 0:01:19.2]} 21... g5 {[%clk 0:01:29.3]} 22. Nfe5 {[%clk
0:01:14.8]} 22... Nef6 {[%clk 0:00:56.5]} 23. f4 {[%clk 0:01:09.8]} 23... Ne4
{[%clk 0:00:52.9]} 24. f5 {[%clk 0:01:05.7]} 24... Rf6 {[%clk 0:00:53]} 25. g4
{[%clk 0:01:04.4]} 25... Rc8 {[%clk 0:00:48.2]} 26. Nxd7 {[%clk 0:01:01.4]}
26... Qxd7 {[%clk 0:00:48]} 27. Be5 {[%clk 0:01:01.9]} 27... Bd6 {[%clk
0:00:42]} 28. Qh2 {[%clk 0:00:43.5]} 28... Re8 {[%clk 0:00:40.4]} 29. Rbc1
{[%clk 0:00:40.4]} 29... c5 {[%clk 0:00:39.6]} 30. Bxd6 {[%clk 0:00:36.1]} 30...
Rxd6 {[%clk 0:00:39.4]} 31. Nxc5 {[%clk 0:00:35.8]} 31... Nxc5 {[%clk
0:00:35.7]} 32. Rxc5 {[%clk 0:00:36.7]} 32... b4 {[%clk 0:00:34.7]} 33. axb4
{[%clk 0:00:35.7]} 33... axb4 {[%clk 0:00:35.6]} 34. h4 {[%clk 0:00:35.4]} 34...
Re4 {[%clk 0:00:34]} 35. Qg3 {[%clk 0:00:32.9]} 35... gxh4 {[%clk 0:00:30.3]}
36. Qxh4 {[%clk 0:00:32]} 36... Qxf5 {[%clk 0:00:27.5]} 37. gxf5 {[%clk
0:00:29.6]} 37... Rxh4 {[%clk 0:00:27.6]} 38. Kg2 {[%clk 0:00:27.6]} 38... Rg4+
{[%clk 0:00:26.4]} 39. Kf3 {[%clk 0:00:27.7]} 39... Rg5 {[%clk 0:00:27.3]} 40.
Kf4 {[%clk 0:00:27.8]} 40... Kg7 {[%clk 0:00:27.9]} 41. Rh1 {[%clk 0:00:21.9]}
41... b3 {[%clk 0:00:24.4]} 42. Rb5 {[%clk 0:00:20.6]} 42... Rf6 {[%clk
0:00:20.6]} 43. Rxd5 {[%clk 0:00:19.7]} 43... Rg2 {[%clk 0:00:21.2]} 44. Rh3
{[%clk 0:00:17.2]} 44... Rxb2 {[%clk 0:00:20.8]} 45. Rg3+ {[%clk 0:00:17.3]}
45... Kh7 {[%clk 0:00:21.2]} 46. Ke5 {[%clk 0:00:14]} 46... Rb6 {[%clk
0:00:20.7]} 47. f6 {[%clk 0:00:12.8]} 47... Rf2 {[%clk 0:00:19.9]} 48. Rg7+
{[%clk 0:00:12.9]} 1-0

[Event "*** Titled Tuesday Blitz"]
[Site "Chess.com"]
[Date "2021.04.27"]
[Round "1"]
[White "PavelChernomordik"]
[Black "dusanacns"]
[Result "0-1"]
[WhiteElo "2379"]
[BlackElo "2715"]
[TimeControl "180+1"]
[EndTime "10:07:35 PDT"]
[Termination "dusanacns won on time"]

1. e4 {[%clk 0:03:00.9]} 1... g6 {[%clk 0:02:54.8]} 2. d4 {[%clk 0:02:58.3]}
2... Bg7 {[%clk 0:02:50.3]} 3. Nc3 {[%clk 0:02:57.7]} 3... d6 {[%clk 0:02:49.9]}
4. f4 {[%clk 0:02:57]} 4... Nf6 {[%clk 0:02:49]} 5. Nf3 {[%clk 0:02:55.9]} 5...
O-O {[%clk 0:02:48.6]} 6. Be3 {[%clk 0:02:53.3]} 6... b6 {[%clk 0:02:44.8]} 7.
e5 {[%clk 0:02:39.9]} 7... Ng4 {[%clk 0:02:43.2]} 8. Bg1 {[%clk 0:02:39.5]} 8...
c5 {[%clk 0:02:41.2]} 9. h3 {[%clk 0:02:31]} 9... Nh6 {[%clk 0:02:38.4]} 10.
dxc5 {[%clk 0:02:22.1]} 10... dxe5 {[%clk 0:02:34.8]} 11. Qxd8 {[%clk
0:02:11.7]} 11... Rxd8 {[%clk 0:02:35.7]} 12. fxe5 {[%clk 0:01:59.4]} 12... bxc5
{[%clk 0:02:13.8]} 13. Bxc5 {[%clk 0:01:57.9]} 13... Nc6 {[%clk 0:02:12.8]} 14.
Bb5 {[%clk 0:01:48.8]} 14... Nxe5 {[%clk 0:01:57.5]} 15. Bxe7 {[%clk 0:01:43]}
15... Nxf3+ {[%clk 0:01:57.4]} 16. gxf3 {[%clk 0:01:42.4]} 16... Rd4 {[%clk
0:01:57]} 17. O-O {[%clk 0:01:27.3]} 17... Bxh3 {[%clk 0:01:53.2]} 18. Rfd1
{[%clk 0:01:26]} 18... Nf5 {[%clk 0:01:47.2]} 19. Kh2 {[%clk 0:01:12.7]} 19...
Nxe7 {[%clk 0:01:37.9]} 20. Kxh3 {[%clk 0:01:11.4]} 20... Rb4 {[%clk 0:01:35.3]}
21. Nd5 {[%clk 0:01:01.1]} 21... Rxb5 {[%clk 0:01:06.8]} 22. Nxe7+ {[%clk
0:01:00.2]} 22... Kf8 {[%clk 0:01:07.2]} 23. Nd5 {[%clk 0:00:56.3]} 23... Rxb2
{[%clk 0:00:58]} 24. Rac1 {[%clk 0:00:49.6]} 24... Rc8 {[%clk 0:00:57.5]} 25. c4
{[%clk 0:00:45.7]} 25... Rxa2 {[%clk 0:00:44.1]} 26. c5 {[%clk 0:00:42.4]} 26...
Ra6 {[%clk 0:00:36.4]} 27. Nb4 {[%clk 0:00:39.5]} 27... Rf6 {[%clk 0:00:33.4]}
28. Kg2 {[%clk 0:00:38]} 28... a5 {[%clk 0:00:33.3]} 29. Nd3 {[%clk 0:00:29.6]}
29... a4 {[%clk 0:00:31.6]} 30. Rc4 {[%clk 0:00:22.5]} 30... Ra6 {[%clk
0:00:30.9]} 31. Nb4 {[%clk 0:00:21.2]} 31... Ra7 {[%clk 0:00:29.3]} 32. c6
{[%clk 0:00:19.1]} 32... a3 {[%clk 0:00:29.8]} 33. Rd2 {[%clk 0:00:17.2]} 33...
Bf6 {[%clk 0:00:28]} 34. Nd5 {[%clk 0:00:15.6]} 34... Be5 {[%clk 0:00:18.9]} 35.
f4 {[%clk 0:00:14.8]} 35... Bc7 {[%clk 0:00:18]} 36. Ra2 {[%clk 0:00:11.2]}
36... Kg7 {[%clk 0:00:15.4]} 37. Nc3 {[%clk 0:00:10.2]} 37... Rb8 {[%clk
0:00:15.3]} 38. Ra4 {[%clk 0:00:07.6]} 38... Rxa4 {[%clk 0:00:13.8]} 39. Nxa4
{[%clk 0:00:07.1]} 39... Rb3 {[%clk 0:00:14.7]} 40. Nc5 {[%clk 0:00:06.2]} 40...
Rb2+ {[%clk 0:00:13.1]} 0-1

[Event "*** Titled Tuesday Blitz"]
[Site "Chess.com"]
[Date "2021.04.27"]
[Round "1"]
[White "DenLaz"]
[Black "InitiatingASC"]
[Result "1-0"]
[WhiteElo "2827"]
[BlackElo "2426"]
[TimeControl "180+1"]
[EndTime "10:07:36 PDT"]
[Termination "DenLaz won by checkmate"]

1. d4 {[%clk 0:03:00.9]} 1... Nf6 {[%clk 0:02:58.3]} 2. c4 {[%clk 0:03:01.3]}
2... g6 {[%clk 0:02:57.8]} 3. g3 {[%clk 0:03:00.8]} 3... Bg7 {[%clk 0:02:56.7]}
4. Bg2 {[%clk 0:03:01]} 4... O-O {[%clk 0:02:55.9]} 5. Nc3 {[%clk 0:03:00]} 5...
d6 {[%clk 0:02:56.5]} 6. Nf3 {[%clk 0:02:59.8]} 6... c5 {[%clk 0:02:53.1]} 7.
O-O {[%clk 0:02:55]} 7... Nc6 {[%clk 0:02:50.3]} 8. dxc5 {[%clk 0:02:51.7]} 8...
dxc5 {[%clk 0:02:50.2]} 9. Bf4 {[%clk 0:02:46.7]} 9... Be6 {[%clk 0:02:46.5]}
10. Ne5 {[%clk 0:02:42.6]} 10... Nxe5 {[%clk 0:02:40.5]} 11. Bxe5 {[%clk
0:02:43.5]} 11... Qb6 {[%clk 0:02:36.5]} 12. Qb3 {[%clk 0:02:19.1]} 12... Rad8
{[%clk 0:02:07.8]} 13. Bxb7 {[%clk 0:01:57]} 13... Rd2 {[%clk 0:02:00.5]} 14.
Qxb6 {[%clk 0:01:52.9]} 14... axb6 {[%clk 0:01:56.2]} 15. b3 {[%clk 0:01:53.4]}
15... Rfd8 {[%clk 0:01:34.5]} 16. Rfc1 {[%clk 0:01:38.2]} 16... Bh6 {[%clk
0:01:12.1]} 17. Bxf6 {[%clk 0:01:14.1]} 17... exf6 {[%clk 0:01:10.8]} 18. e3
{[%clk 0:01:14.7]} 18... Bg4 {[%clk 0:01:03.3]} 19. Bd5 {[%clk 0:01:10.9]} 19...
Bg7 {[%clk 0:00:58.1]} 20. Kg2 {[%clk 0:00:56]} 20... Re8 {[%clk 0:00:27.5]} 21.
h3 {[%clk 0:00:52.4]} 21... Bc8 {[%clk 0:00:19.2]} 22. Rd1 {[%clk 0:00:50.6]}
22... Rc2 {[%clk 0:00:14.3]} 23. Rac1 {[%clk 0:00:49.2]} 23... Rb2 {[%clk
0:00:14.4]} 24. Bc6 {[%clk 0:00:31.8]} 24... Rf8 {[%clk 0:00:09.7]} 25. Rd6
{[%clk 0:00:25.4]} 25... f5 {[%clk 0:00:08.1]} 26. Bf3 {[%clk 0:00:24.4]} 26...
Bxc3 {[%clk 0:00:03.4]} 27. Rxc3 {[%clk 0:00:23.3]} 27... Rxa2 {[%clk
0:00:04.3]} 28. Rxb6 {[%clk 0:00:23.3]} 28... Be6 {[%clk 0:00:04.2]} 29. Bd5
{[%clk 0:00:20]} 29... Bxd5+ {[%clk 0:00:02.4]} 30. cxd5 {[%clk 0:00:20.9]}
30... Rd2 {[%clk 0:00:02.7]} 31. Rxc5 {[%clk 0:00:20.9]} 31... Ra8 {[%clk
0:00:03.4]} 32. Kf3 {[%clk 0:00:04.9]} 32... Raa2 {[%clk 0:00:03.7]} 33. Kf4
{[%clk 0:00:05]} 33... Rxf2+ {[%clk 0:00:02.8]} 34. Ke5 {[%clk 0:00:05.4]} 34...
Kg7 {[%clk 0:00:03.3]} 35. d6 {[%clk 0:00:05.7]} 35... Rad2 {[%clk 0:00:02.6]}
36. Rd5 {[%clk 0:00:04]} 36... Rxd5+ {[%clk 0:00:02]} 37. Kxd5 {[%clk
0:00:04.9]} 37... Rd2+ {[%clk 0:00:02.4]} 38. Kc6 {[%clk 0:00:05.2]} 38... Kf6
{[%clk 0:00:02.4]} 39. Kc7 {[%clk 0:00:04.6]} 39... Ke6 {[%clk 0:00:02]} 40. Rc6
{[%clk 0:00:05.2]} 40... Rd3 {[%clk 0:00:01.6]} 41. b4 {[%clk 0:00:05.2]} 41...
Rxe3 {[%clk 0:00:01.4]} 42. d7+ {[%clk 0:00:05.4]} 42... Ke7 {[%clk 0:00:01.3]}
43. d8=Q# {[%clk 0:00:06.3]} 1-0